[Event "69th RUS-ch Women Higher League 2019"]
[Site "Yaroslavl"]
[Date "2019.07.05"]
[Round "8.13"]
[White "Khokhlova, Daria"]
[Black "Maletina, Tatiana"]
[Result "1/2-1/2"]
[ECO "C05"]
[WhiteElo "2234"]
[BlackElo "2273"]
[Annotator "NA"]
[PlyCount "81"]
[EventDate "2019.06.27"]
[EventType "swiss"]
[EventCountry "RUS"]
[SourceTitle "playchess.com"]
[Source "ChessBase"]
[SourceQuality "1"]
[TimeControl "40/5400+30:1800+30"]

1. e4 {[%emt 0:00:00]} e6 {[%emt 0:00:00]} 2. d4 {[%emt 0:00:00]} d5 {[%emt 0:00:00]} 3. Nd2 {[%emt 0:00:00]} Nf6 {[%emt 0:00:03]} 4. Bd3 {[%emt 0:00:23]} c5 {[%emt 0:00:14]} 5. dxc5 {[%emt 0:00:07]} dxe4 {[%emt 0:01:45]} 6. Nxe4 {[%emt 0:00:26]} Nxe4 {[%emt 0:00:24]} 7. Bxe4 {[%emt 0:00:01]} Qxd1+ {[%emt 0:00:09]} 8. Kxd1 {[%emt 0:00:01]} Bxc5 {[%emt 0:00:07]} 9. Ke2 {[%emt 0:00:19]} Nc6 {[%emt 0:01:16]} 10. Be3 {[%emt 0:03:07]} Bxe3 {[%emt 0:01:52]} 11. Bxc6+ {[%emt 0:06:29]} bxc6 {[%emt 0:00:06]} 12. Kxe3 {[%emt 0:00:09]} Rb8 {[%emt 0:03:36]} 13. b3 {[%emt 0:01:01]} c5 {[%emt 0:00:06]} 14. Nf3 {[%emt 0:03:40]} Bb7 {[%emt 0:00:40]} 15. Ne5 {[%emt 0:02:22]} Ke7 {[%emt 0:03:08]} 16. f3 {[%emt 0:02:55]} f6 {[%emt 0:01:02]} 17. Nd3 {[%emt 0:02:48]} Rhc8 {[%emt 0:02:29]} 18. c4 {[%emt 0:06:13]} a5 {[%emt 0:00:05]} 19. Rab1 {[%emt 0:03:21]} Ba6 {[%emt 0:00:09]} 20. Nb2 {[%emt 0:01:31]} Rc7 {[%emt 0:01:23]} 21. Na4 {[%emt 0:03:41]} Rb4 {[%emt 0:01:53]} 22. Nc3 {[%emt 0:03:54]} Rcb7 {[%emt 0:01:19]} 23. Rhe1 {[%emt 0:04:52]} Rd7 {[%emt 0:09:37]} 24. Rbd1 {[%emt 0:02:34]} Rbb7 {[%emt 0:02:42]} 25. Rxd7+ {[%emt 0:04:33]} Rxd7 {[%emt 0:00:05]} 26. Rd1 {[%emt 0:03:16]} Rxd1 {[%emt 0:02:02]} 27. Nxd1 {[%emt 0:00:01]} a4 {[%emt 0:00:07]} 28. Nb2 {[%emt 0:02:20]} axb3 {[%emt 0:00:06]} 29. axb3 {[%emt 0:00:02]} Kd6 {[%emt 0:00:17]} 30. Nd3 {[%emt 0:01:41]} Bb7 {[%emt 0:00:20]} 31. b4 {[%emt 0:05:24]} cxb4 {[%emt 0:01:29]} 32. Nxb4 {[%emt 0:00:03]} Kc5 {[%emt 0:11:13]} 33. Nd3+ {[%emt 0:00:08]} Kxc4 {[%emt 0:00:05]} 34. Nf4 {[%emt 0:00:02]} e5 {[%emt 0:10:27]} 35. Nh5 {[%emt 0:00:05]} Kd5 {[%emt 0:00:25]} 36. Nxg7 {[%emt 0:00:10]} Bc8 {[%emt 0:01:16]} 37. g4 {[%emt 0:00:13]} Kd6 {[%emt 0:00:51]} 38. Nh5 {[%emt 0:00:27]} f5 {[%emt 0:03:00]} 39. gxf5 {[%emt 0:00:05]} Bxf5 {[%emt 0:00:04]} 40. f4 {[%emt 0:00:00]} Bg6 {[%emt 0:00:00]} 41. fxe5+ {[%emt 0:00:23]} 1/2-1/2

[Event "69th RUS-ch Women Higher League 2019"]
[Site "Yaroslavl"]
[Date "2019.07.05"]
[Round "8.14"]
[White "Chkhan, Viktoria"]
[Black "Dimitrova, Aleksandra"]
[Result "0-1"]
[ECO "E12"]
[WhiteElo "2141"]
[BlackElo "2273"]
[Annotator "NA"]
[PlyCount "110"]
[EventDate "2019.06.27"]
[EventType "swiss"]
[EventCountry "RUS"]
[SourceTitle "playchess.com"]
[Source "ChessBase"]
[SourceQuality "1"]
[TimeControl "40/5400+30:1800+30"]

1. d4 {[%emt 0:00:00]} Nf6 {[%emt 0:00:22]} 2. c4 {[%emt 0:00:00]} e6 {[%emt 0:00:05]} 3. Nf3 {[%emt 0:00:00]} b6 {[%emt 0:00:04]} 4. a3 {[%emt 0:00:00]} Ba6 {[%emt 0:00:04]} 5. Qc2 {[%emt 0:00:03]} Bb7 {[%emt 0:00:07]} 6. Nc3 {[%emt 0:00:06]} c5 {[%emt 0:00:08]} 7. dxc5 {[%emt 0:00:42]} Bxc5 {[%emt 0:02:40]} 8. Bf4 {[%emt 0:00:16]} Nh5 {[%emt 0:08:01]} 9. Bg5 {[%emt 0:05:11]} Qc8 {[%emt 0:05:51]} 10. e3 {[%emt 0:07:19]} h6 {[%emt 0:09:23]} 11. Bh4 {[%emt 0:01:16]} a6 {[%emt 0:05:38]} 12. Be2 {[%emt 0:03:57]} g5 {[%emt 0:05:01]} 13. Bg3 {[%emt 0:00:22]} Nxg3 {[%emt 0:00:46]} 14. hxg3 {[%emt 0:00:07]} Be7 {[%emt 0:00:41]} 15. Na4 {[%emt 0:21:11]} Qc6 {[%emt 0:10:52]} 16. Rh2 {[%emt 0:05:56]} d6 {[%emt 0:06:36]} 17. Nd4 {[%emt 0:02:18]} Qc7 {[%emt 0:01:30]} 18. Bh5 {[%emt 0:09:44]} Kf8 {[%emt 0:02:40]} 19. Nxb6 {[%emt 0:05:27]} Ra7 {[%emt 0:11:28]} 20. Na4 {[%emt 0:07:12]} Nd7 {[%emt 0:00:50]} 21. Bg4 {[%emt 0:08:45]} Qa5+ {[%emt 0:05:05]} 22. Qc3 {[%emt 0:03:49]} Qe5 {[%emt 0:01:14]} 23. O-O-O {[%emt 0:02:26]} Kg7 {[%emt 0:03:38]} 24. f4 {[%emt 0:04:23]} Qf6 {[%emt 0:00:45]} 25. Ne2 {[%emt 0:05:18]} Bc6 {[%emt 0:01:58]} 26. Qc2 {[%emt 0:01:33]} Rc7 {[%emt 0:03:43]} 27. Nac3 {[%emt 0:02:21]} Ba8 {[%emt 0:00:15]} 28. Bf3 {[%emt 0:01:51]} Rxc4 {[%emt 0:01:30]} 29. Bxa8 {[%emt 0:00:04]} Rxa8 {[%emt 0:00:03]} 30. Rdh1 {[%emt 0:00:46]} Rh8 {[%emt 0:00:49]} 31. Qd3 {[%emt 0:00:28]} d5 {[%emt 0:00:18]} 32. Kb1 {[%emt 0:01:03]} Nc5 {[%emt 0:00:51]} 33. Qd2 {[%emt 0:00:45]} Qg6+ {[%emt 0:00:37]} 34. Ka2 {[%emt 0:00:29]} Nd3 {[%emt 0:02:36]} 35. Nc1 {[%emt 0:01:00]} Nc5 {[%emt 0:02:36]} 36. Rf1 {[%emt 0:00:22]} Bf6 {[%emt 0:03:18]} 37. N1e2 {[%emt 0:01:19]} Qd3 {[%emt 0:00:52]} 38. Rd1 {[%emt 0:00:24]} Qxd2 {[%emt 0:01:09]} 39. Rxd2 {[%emt 0:00:03]} Rb8 {[%emt 0:01:11]} 40. Rh1 {[%emt 0:00:00]} Ne4 {[%emt 0:00:00]} 41. Rc2 {[%emt 0:02:49]} Bxc3 {[%emt 0:10:27]} 42. bxc3 {[%emt 0:00:29]} Rb5 {[%emt 0:00:29]} 43. Rb1 {[%emt 0:00:22]} Ra5 {[%emt 0:00:35]} 44. Rb3 {[%emt 0:01:49]} Rca4 {[%emt 0:00:58]} 45. Nc1 {[%emt 0:01:43]} Nxg3 {[%emt 0:03:55]} 46. fxg5 {[%emt 0:00:33]} hxg5 {[%emt 0:00:04]} 47. Kb2 {[%emt 0:00:42]} Re4 {[%emt 0:00:25]} 48. Rf2 {[%emt 0:01:55]} Rxe3 {[%emt 0:00:43]} 49. Rb7 {[%emt 0:00:06]} Rb5+ {[%emt 0:02:44]} 50. Rxb5 {[%emt 0:00:06]} axb5 {[%emt 0:00:02]} 51. Nb3 {[%emt 0:01:09]} Ne2 {[%emt 0:05:15]} 52. Rf3 {[%emt 0:00:05]} Nxc3 {[%emt 0:02:09]} 53. Rxe3 {[%emt 0:00:51]} Nd1+ {[%emt 0:00:02]} 54. Kc1 {[%emt 0:00:06]} Nxe3 {[%emt 0:00:07]} 55. Nd4 {[%emt 0:00:03]} Nxg2 {[%emt 0:00:37]} 0-1

[Event "69th RUS-ch Women Higher League 2019"]
[Site "Yaroslavl"]
[Date "2019.07.05"]
[Round "8.15"]
[White "Utiatskaja, Irina"]
[Black "Ovod, Evgenija"]
[Result "0-1"]
[ECO "A11"]
[WhiteElo "2192"]
[BlackElo "2361"]
[Annotator "NA"]
[PlyCount "126"]
[EventDate "2019.06.27"]
[EventType "swiss"]
[EventCountry "RUS"]
[SourceTitle "playchess.com"]
[Source "ChessBase"]
[SourceQuality "1"]
[TimeControl "40/5400+30:1800+30"]

1. c4 {[%emt 0:00:00]} c6 {[%emt 0:00:00]} 2. Nf3 {[%emt 0:01:53]} d5 {[%emt 0:00:06]} 3. e3 {[%emt 0:01:39]} Nf6 {[%emt 0:00:44]} 4. b3 {[%emt 0:00:17]} e6 {[%emt 0:02:05]} 5. Bb2 {[%emt 0:00:50]} Nbd7 {[%emt 0:01:04]} 6. Qc2 {[%emt 0:02:16]} Bd6 {[%emt 0:00:51]} 7. d4 {[%emt 0:06:21]} Ne4 {[%emt 0:06:12]} 8. Nbd2 {[%emt 0:16:43]} f5 {[%emt 0:00:35]} 9. g3 {[%emt 0:00:53]} O-O {[%emt 0:45:42]} 10. Bg2 {[%emt 0:01:47]} Qe7 {[%emt 0:00:35]} 11. O-O {[%emt 0:01:17]} b6 {[%emt 0:00:02]} 12. Ne5 {[%emt 0:01:14]} Bb7 {[%emt 0:00:05]} 13. Ndf3 {[%emt 0:01:09]} Ndf6 {[%emt 0:02:05]} 14. Nd3 {[%emt 0:00:55]} c5 {[%emt 0:02:18]} 15. Nfe5 {[%emt 0:06:16]} Rac8 {[%emt 0:02:10]} 16. f3 {[%emt 0:11:19]} cxd4 {[%emt 0:05:23]} 17. exd4 {[%emt 0:08:55]} dxc4 {[%emt 0:00:05]} 18. bxc4 {[%emt 0:02:24]} Ng5 {[%emt 0:00:03]} 19. Qb3 {[%emt 0:03:43]} Rc7 {[%emt 0:04:43]} 20. Rfe1 {[%emt 0:04:37]} Rfc8 {[%emt 0:00:10]} 21. Rac1 {[%emt 0:05:25]} Nd7 {[%emt 0:10:00]} 22. h4 {[%emt 0:04:44]} Nf7 {[%emt 0:01:42]} 23. f4 {[%emt 0:02:03]} Bxg2 {[%emt 0:02:16]} 24. Kxg2 {[%emt 0:00:03]} Nf6 {[%emt 0:00:06]} 25. Nf2 {[%emt 0:05:04]} Nd8 {[%emt 0:03:00]} 26. Nf3 {[%emt 0:02:29]} Qd7 {[%emt 0:02:24]} 27. Ng5 {[%emt 0:04:02]} Be7 {[%emt 0:01:27]} 28. Qd3 {[%emt 0:03:19]} Rxc4 {[%emt 0:00:45]} 29. Rxc4 {[%emt 0:01:02]} Qd5+ {[%emt 0:00:03]} 30. Qf3 {[%emt 0:00:36]} Qxc4 {[%emt 0:02:10]} 31. Nxe6 {[%emt 0:01:08]} Nxe6 {[%emt 0:01:53]} 32. d5 {[%emt 0:00:36]} Nxd5 {[%emt 0:02:32]} 33. Rc1 {[%emt 0:00:33]} Ndxf4+ {[%emt 0:00:19]} 34. gxf4 {[%emt 0:00:03]} Qa6 {[%emt 0:00:04]} 35. Qd5 {[%emt 0:00:11]} b5 {[%emt 0:01:05]} 36. Rxc8+ {[%emt 0:00:58]} Qxc8 {[%emt 0:00:04]} 37. Qxf5 {[%emt 0:00:27]} Bxh4 {[%emt 0:01:27]} 38. Qe4 {[%emt 0:01:17]} Bxf2 {[%emt 0:00:42]} 39. Kxf2 {[%emt 0:00:03]} Qc4 {[%emt 0:00:53]} 40. Qa8+ {[%emt 0:00:00]} Nf8 {[%emt 0:00:00]} 41. Be5 {[%emt 0:01:42]} Qxa2+ {[%emt 0:01:34]} 42. Kg3 {[%emt 0:01:54]} Qb3+ {[%emt 0:03:51]} 43. Kg2 {[%emt 0:02:35]} Qc2+ {[%emt 0:00:23]} 44. Kf3 {[%emt 0:00:59]} Qd3+ {[%emt 0:00:23]} 45. Kf2 {[%emt 0:00:23]} Qd7 {[%emt 0:00:49]} 46. Qb8 {[%emt 0:00:34]} Kf7 {[%emt 0:00:55]} 47. Bc3 {[%emt 0:01:30]} Ng6 {[%emt 0:00:59]} 48. Be5 {[%emt 0:04:03]} Nxe5 {[%emt 0:05:49]} 49. Qxe5 {[%emt 0:00:40]} a5 {[%emt 0:00:34]} 50. Qe4 {[%emt 0:00:20]} h6 {[%emt 0:04:50]} 51. Qe5 {[%emt 0:05:55]} a4 {[%emt 0:00:31]} 52. Qh5+ {[%emt 0:00:11]} Kg8 {[%emt 0:00:20]} 53. Qc5 {[%emt 0:00:04]} g6 {[%emt 0:03:43]} 54. Qb6 {[%emt 0:02:26]} Kh7 {[%emt 0:01:39]} 55. Qc5 {[%emt 0:00:13]} h5 {[%emt 0:00:14]} 56. Ke1 {[%emt 0:01:51]} Qf7 {[%emt 0:03:17]} 57. Qxb5 {[%emt 0:01:31]} Qxf4 {[%emt 0:00:07]} 58. Qd7+ {[%emt 0:00:36]} Kh6 {[%emt 0:00:08]} 59. Qe8 {[%emt 0:01:20]} Qd4 {[%emt 0:04:01]} 60. Qf8+ {[%emt 0:01:00]} Kg5 {[%emt 0:00:10]} 61. Qe7+ {[%emt 0:00:11]} Kf5 {[%emt 0:00:17]} 62. Kf1 {[%emt 0:01:13]} Qf4+ {[%emt 0:00:21]} 63. Kg1 {[%emt 0:00:12]} Qg5+ {[%emt 0:00:04]} 0-1

[Event "69th RUS-ch Women Higher League 2019"]
[Site "Yaroslavl"]
[Date "2019.07.05"]
[Round "8.16"]
[White "Mukhina, Jana"]
[Black "Komiagina, Maria"]
[Result "1-0"]
[ECO "B06"]
[WhiteElo "2090"]
[BlackElo "2254"]
[Annotator "NA"]
[PlyCount "95"]
[EventDate "2019.06.27"]
[EventType "swiss"]
[EventCountry "RUS"]
[SourceTitle "playchess.com"]
[Source "ChessBase"]
[SourceQuality "1"]
[TimeControl "40/5400+30:1800+30"]

1. e4 {[%emt 0:00:00]} g6 {[%emt 0:00:00]} 2. d4 {[%emt 0:00:00]} Bg7 {[%emt 0:00:00]} 3. Nc3 {[%emt 0:00:03]} c6 {[%emt 0:00:06]} 4. h3 {[%emt 0:00:31]} d5 {[%emt 0:00:41]} 5. Nf3 {[%emt 0:01:04]} dxe4 {[%emt 0:00:28]} 6. Nxe4 {[%emt 0:00:02]} Nd7 {[%emt 0:00:39]} 7. c4 {[%emt 0:06:59]} Ngf6 {[%emt 0:00:10]} 8. Nc3 {[%emt 0:00:10]} O-O {[%emt 0:00:40]} 9. Be3 {[%emt 0:04:16]} a6 {[%emt 0:06:09]} 10. Be2 {[%emt 0:01:28]} b5 {[%emt 0:00:20]} 11. O-O {[%emt 0:07:25]} Nb6 {[%emt 0:03:39]} 12. b3 {[%emt 0:08:34]} Bf5 {[%emt 0:02:48]} 13. Ne5 {[%emt 0:01:13]} b4 {[%emt 0:01:03]} 14. Nxc6 {[%emt 0:10:05]} Qd6 {[%emt 0:00:22]} 15. Bf3 {[%emt 0:24:35]} bxc3 {[%emt 0:00:28]} 16. c5 {[%emt 0:00:08]} c2 {[%emt 0:06:56]} 17. Qe1 {[%emt 0:03:13]} Qd7 {[%emt 0:06:19]} 18. cxb6 {[%emt 0:00:19]} Be4 {[%emt 0:00:49]} 19. Ne5 {[%emt 0:01:10]} Qb5 {[%emt 0:00:21]} 20. Bxe4 {[%emt 0:01:32]} Nxe4 {[%emt 0:00:07]} 21. Nc4 {[%emt 0:01:04]} Nd6 {[%emt 0:03:26]} 22. Qc3 {[%emt 0:06:53]} Rac8 {[%emt 0:01:26]} 23. Qxc2 {[%emt 0:07:39]} f5 {[%emt 0:04:51]} 24. Bg5 {[%emt 0:02:52]} Bxd4 {[%emt 0:05:33]} 25. Rac1 {[%emt 0:07:41]} Qd7 {[%emt 0:03:50]} 26. Qe2 {[%emt 0:02:37]} Ne4 {[%emt 0:09:58]} 27. Be3 {[%emt 0:00:22]} Bg7 {[%emt 0:00:05]} 28. Rfd1 {[%emt 0:00:41]} Qb5 {[%emt 0:00:25]} 29. Bd4 {[%emt 0:00:41]} Bh6 {[%emt 0:02:03]} 30. Be3 {[%emt 0:00:41]} Bg7 {[%emt 0:02:40]} 31. Qd3 {[%emt 0:00:07]} Rb8 {[%emt 0:04:22]} 32. a4 {[%emt 0:00:32]} Qb4 {[%emt 0:00:28]} 33. Qd5+ {[%emt 0:00:36]} Kh8 {[%emt 0:00:10]} 34. Ne5 {[%emt 0:01:01]} f4 {[%emt 0:07:01]} 35. Bd4 {[%emt 0:00:24]} Nf6 {[%emt 0:06:32]} 36. Qe6 {[%emt 0:00:16]} Rbe8 {[%emt 0:06:22]} 37. Bc5 {[%emt 0:00:17]} Qe4 {[%emt 0:00:33]} 38. f3 {[%emt 0:00:41]} Qa8 {[%emt 0:00:37]} 39. a5 {[%emt 0:00:42]} Rc8 {[%emt 0:03:38]} 40. Nf7+ {[%emt 0:00:00]} Rxf7 {[%emt 0:00:00]} 41. Qxf7 {[%emt 0:00:51]} Ng8 {[%emt 0:04:18]} 42. Bxe7 {[%emt 0:03:07]} Re8 {[%emt 0:02:08]} 43. Rd7 {[%emt 0:01:56]} Nh6 {[%emt 0:01:00]} 44. Qxf4 {[%emt 0:01:23]} Nf5 {[%emt 0:00:15]} 45. b7 {[%emt 0:01:25]} Qa7+ {[%emt 0:02:48]} 46. Bc5 {[%emt 0:01:22]} Re1+ {[%emt 0:01:58]} 47. Rxe1 {[%emt 0:00:44]} Qxc5+ {[%emt 0:00:07]} 48. Kh2 {[%emt 0:00:43]} 1-0

[Event "69th RUS-ch Women Higher League 2019"]
[Site "Yaroslavl"]
[Date "2019.07.05"]
[Round "8.17"]
[White "Chernyak, Viktoria"]
[Black "Tokmakova, Ulyana"]
[Result "1-0"]
[ECO "D30"]
[WhiteElo "2253"]
[BlackElo "1878"]
[Annotator "NA"]
[PlyCount "65"]
[EventDate "2019.06.27"]
[EventType "swiss"]
[EventCountry "RUS"]
[SourceTitle "playchess.com"]
[Source "ChessBase"]
[SourceQuality "1"]
[TimeControl "40/5400+30:1800+30"]

1. d4 {[%emt 0:00:00]} d5 {[%emt 0:00:00]} 2. c4 {[%emt 0:00:00]} e6 {[%emt 0:00:00]} 3. Nf3 {[%emt 0:00:00]} c5 {[%emt 0:00:00]} 4. cxd5 {[%emt 0:00:19]} exd5 {[%emt 0:00:00]} 5. g3 {[%emt 0:00:25]} Nf6 {[%emt 0:01:07]} 6. Bg2 {[%emt 0:00:15]} Be7 {[%emt 0:00:06]} 7. O-O {[%emt 0:00:24]} O-O {[%emt 0:00:07]} 8. Be3 {[%emt 0:02:43]} c4 {[%emt 0:00:14]} 9. b3 {[%emt 0:00:28]} cxb3 {[%emt 0:00:20]} 10. Qxb3 {[%emt 0:00:28]} Nc6 {[%emt 0:01:41]} 11. Nc3 {[%emt 0:03:58]} Na5 {[%emt 0:02:25]} 12. Qb1 {[%emt 0:03:17]} Nc4 {[%emt 0:01:21]} 13. Bf4 {[%emt 0:01:19]} Qa5 {[%emt 0:04:47]} 14. Qd3 {[%emt 0:01:58]} Bb4 {[%emt 0:03:16]} 15. Nd1 {[%emt 0:06:07]} b6 {[%emt 0:10:02]} 16. Ne5 {[%emt 0:07:49]} Ba6 {[%emt 0:02:28]} 17. Nc6 {[%emt 0:03:22]} Qa4 {[%emt 0:05:15]} 18. Nxb4 {[%emt 0:00:23]} Qxb4 {[%emt 0:00:13]} 19. Qb3 {[%emt 0:01:58]} Qa5 {[%emt 0:03:16]} 20. Nc3 {[%emt 0:00:48]} Rac8 {[%emt 0:01:08]} 21. Rfc1 {[%emt 0:10:32]} Rfe8 {[%emt 0:05:34]} 22. a4 {[%emt 0:07:25]} h6 {[%emt 0:05:15]} 23. h4 {[%emt 0:06:10]} Ne4 {[%emt 0:03:21]} 24. Nb5 {[%emt 0:08:12]} Bxb5 {[%emt 0:13:09]} 25. axb5 {[%emt 0:03:53]} Ncd2 {[%emt 0:03:25]} 26. Qxd5 {[%emt 0:06:37]} Rxc1+ {[%emt 0:01:24]} 27. Rxc1 {[%emt 0:00:10]} Nc3 {[%emt 0:00:10]} 28. Qd7 {[%emt 0:00:35]} Nxe2+ {[%emt 0:00:47]} 29. Kh2 {[%emt 0:00:08]} Rf8 {[%emt 0:02:12]} 30. Rc8 {[%emt 0:01:21]} g5 {[%emt 0:02:44]} 31. Rxf8+ {[%emt 0:02:01]} Kxf8 {[%emt 0:00:02]} 32. Be5 {[%emt 0:00:35]} f6 {[%emt 0:02:10]} 33. Qd8+ {[%emt 0:00:34]} 1-0

[Event "69th RUS-ch Women Higher League 2019"]
[Site "Yaroslavl"]
[Date "2019.07.05"]
[Round "8.18"]
[White "Diakonova, Ekaterina"]
[Black "Markelova, Lubov"]
[Result "1-0"]
[ECO "C11"]
[WhiteElo "2196"]
[BlackElo "2186"]
[Annotator "NA"]
[PlyCount "105"]
[EventDate "2019.06.27"]
[EventType "swiss"]
[EventCountry "RUS"]
[SourceTitle "playchess.com"]
[Source "ChessBase"]
[SourceQuality "1"]
[TimeControl "40/5400+30:1800+30"]

1. e4 {[%emt 0:00:00]} e6 {[%emt 0:00:00]} 2. d4 {[%emt 0:00:00]} d5 {[%emt 0:00:00]} 3. Nc3 {[%emt 0:00:00]} Nf6 {[%emt 0:00:00]} 4. Bg5 {[%emt 0:00:00]} dxe4 {[%emt 0:00:17]} 5. Nxe4 {[%emt 0:00:00]} Nbd7 {[%emt 0:00:07]} 6. Nf3 {[%emt 0:00:00]} h6 {[%emt 0:00:13]} 7. Nxf6+ {[%emt 0:00:05]} Nxf6 {[%emt 0:00:11]} 8. Be3 {[%emt 0:00:06]} Nd5 {[%emt 0:01:05]} 9. Bd2 {[%emt 0:00:19]} c5 {[%emt 0:01:17]} 10. Bb5+ {[%emt 0:00:22]} Bd7 {[%emt 0:01:05]} 11. Bxd7+ {[%emt 0:00:07]} Qxd7 {[%emt 0:00:22]} 12. c4 {[%emt 0:00:06]} Nb6 {[%emt 0:05:47]} 13. Rc1 {[%emt 0:00:07]} Rc8 {[%emt 0:08:26]} 14. dxc5 {[%emt 0:07:35]} Rxc5 {[%emt 0:03:12]} 15. Qe2 {[%emt 0:09:40]} Qc7 {[%emt 0:06:04]} 16. b3 {[%emt 0:02:46]} Be7 {[%emt 0:07:49]} 17. O-O {[%emt 0:12:01]} O-O {[%emt 0:06:43]} 18. Be3 {[%emt 0:04:02]} Rh5 {[%emt 0:05:21]} 19. h3 {[%emt 0:07:01]} Nd7 {[%emt 0:08:38]} 20. Nd4 {[%emt 0:03:05]} Nf6 {[%emt 0:07:42]} 21. Rfd1 {[%emt 0:11:42]} a6 {[%emt 0:01:12]} 22. Rc2 {[%emt 0:00:49]} e5 {[%emt 0:09:34]} 23. Nf3 {[%emt 0:01:20]} e4 {[%emt 0:03:43]} 24. Nd4 {[%emt 0:00:51]} Qe5 {[%emt 0:01:35]} 25. f4 {[%emt 0:04:56]} exf3 {[%emt 0:01:37]} 26. Qxf3 {[%emt 0:00:30]} Bc5 {[%emt 0:06:19]} 27. g4 {[%emt 0:08:47]} Rg5 {[%emt 0:01:12]} 28. Kh1 {[%emt 0:06:44]} Rg6 {[%emt 0:05:34]} 29. Bf4 {[%emt 0:00:09]} Qe4 {[%emt 0:01:20]} 30. Re2 {[%emt 0:00:55]} Qxf3+ {[%emt 0:00:20]} 31. Nxf3 {[%emt 0:00:04]} Nxg4 {[%emt 0:01:27]} 32. hxg4 {[%emt 0:00:38]} Rf6 {[%emt 0:02:47]} 33. Re4 {[%emt 0:02:18]} g5 {[%emt 0:00:23]} 34. Be3 {[%emt 0:00:13]} Bxe3 {[%emt 0:02:15]} 35. Rxe3 {[%emt 0:00:03]} Rf4 {[%emt 0:00:57]} 36. Rd4 {[%emt 0:03:24]} f5 {[%emt 0:00:06]} 37. gxf5 {[%emt 0:00:44]} R4xf5 {[%emt 0:00:18]} 38. Kg2 {[%emt 0:00:04]} h5 {[%emt 0:00:27]} 39. Rd5 {[%emt 0:00:32]} b5 {[%emt 0:01:39]} 40. Rxf5 {[%emt 0:00:00]} Rxf5 {[%emt 0:00:00]} 41. Re5 {[%emt 0:09:36]} Rxe5 {[%emt 0:00:23]} 42. Nxe5 {[%emt 0:00:03]} bxc4 {[%emt 0:00:09]} 43. bxc4 {[%emt 0:01:19]} Kf8 {[%emt 0:00:54]} 44. Kf3 {[%emt 0:02:48]} Ke7 {[%emt 0:01:14]} 45. Ke4 {[%emt 0:00:48]} Kd6 {[%emt 0:02:30]} 46. Kd4 {[%emt 0:00:11]} g4 {[%emt 0:00:25]} 47. c5+ {[%emt 0:01:04]} Kc7 {[%emt 0:00:14]} 48. Kd5 {[%emt 0:01:14]} g3 {[%emt 0:00:57]} 49. Nf3 {[%emt 0:00:27]} g2 {[%emt 0:01:31]} 50. Ng1 {[%emt 0:00:23]} h4 {[%emt 0:00:55]} 51. c6 {[%emt 0:03:01]} Kc8 {[%emt 0:09:32]} 52. Kc5 {[%emt 0:02:12]} Kc7 {[%emt 0:00:05]} 53. a4 {[%emt 0:00:20] Kd6+} 1-0

[Event "69th RUS-ch Women Higher League 2019"]
[Site "Yaroslavl"]
[Date "2019.07.05"]
[Round "8.19"]
[White "Belenkaya, Dina"]
[Black "Matveeva, Olga"]
[Result "1-0"]
[ECO "C47"]
[WhiteElo "2321"]
[BlackElo "2189"]
[Annotator "NA"]
[PlyCount "129"]
[EventDate "2019.06.27"]
[EventType "swiss"]
[EventCountry "RUS"]
[SourceTitle "playchess.com"]
[Source "ChessBase"]
[SourceQuality "1"]
[TimeControl "40/5400+30:1800+30"]

1. e4 {[%emt 0:00:00]} e5 {[%emt 0:00:00]} 2. Nf3 {[%emt 0:00:00]} Nf6 {[%emt 0:00:00]} 3. Nc3 {[%emt 0:00:00]} Nc6 {[%emt 0:00:00]} 4. d4 {[%emt 0:00:26]} exd4 {[%emt 0:00:00]} 5. Nxd4 {[%emt 0:00:05]} Bb4 {[%emt 0:00:00]} 6. Nxc6 {[%emt 0:00:18]} bxc6 {[%emt 0:00:02]} 7. Bd3 {[%emt 0:00:10]} O-O {[%emt 0:00:28]} 8. O-O {[%emt 0:00:15]} d5 {[%emt 0:00:08]} 9. exd5 {[%emt 0:00:05]} cxd5 {[%emt 0:00:04]} 10. h3 {[%emt 0:01:06]} c6 {[%emt 0:00:42]} 11. Qf3 {[%emt 0:00:41]} Re8 {[%emt 0:01:38]} 12. Ne2 {[%emt 0:02:23]} Bd6 {[%emt 0:11:04]} 13. Ng3 {[%emt 0:03:49]} Rb8 {[%emt 0:05:36]} 14. Nf5 {[%emt 0:04:38]} Bxf5 {[%emt 0:06:29]} 15. Qxf5 {[%emt 0:00:50]} g6 {[%emt 0:03:54]} 16. Qf3 {[%emt 0:04:02]} Nd7 {[%emt 0:00:55]} 17. Qd1 {[%emt 0:01:12]} Qf6 {[%emt 0:06:08]} 18. c3 {[%emt 0:08:20]} Nc5 {[%emt 0:04:51]} 19. Bc2 {[%emt 0:01:11]} Ne4 {[%emt 0:01:24]} 20. Qd4 {[%emt 0:09:44]} Bc5 {[%emt 0:10:05]} 21. Qxf6 {[%emt 0:00:40]} Nxf6 {[%emt 0:00:04]} 22. b4 {[%emt 0:08:04]} Bb6 {[%emt 0:05:28]} 23. Bf4 {[%emt 0:01:55]} Rbc8 {[%emt 0:00:54]} 24. Rfe1 {[%emt 0:03:07]} a5 {[%emt 0:02:25]} 25. Kf1 {[%emt 0:06:44]} Re6 {[%emt 0:07:53]} 26. g4 {[%emt 0:05:38]} Kg7 {[%emt 0:04:05]} 27. a4 {[%emt 0:14:03]} Nd7 {[%emt 0:01:57]} 28. h4 {[%emt 0:09:26]} Rce8 {[%emt 0:02:01]} 29. Rxe6 {[%emt 0:04:12]} fxe6 {[%emt 0:01:22]} 30. Ke2 {[%emt 0:04:36]} e5 {[%emt 0:01:05]} 31. Bd2 {[%emt 0:01:11]} e4 {[%emt 0:03:02]} 32. Rb1 {[%emt 0:02:32]} Ne5 {[%emt 0:04:58]} 33. bxa5 {[%emt 0:02:24]} Bxa5 {[%emt 0:00:12]} 34. Rb7+ {[%emt 0:00:07]} Kg8 {[%emt 0:00:56]} 35. Ra7 {[%emt 0:00:39]} Bb6 {[%emt 0:03:59]} 36. Ra6 {[%emt 0:00:09]} Bc5 {[%emt 0:04:14]} 37. Be3 {[%emt 0:00:44]} Bxe3 {[%emt 0:01:17]} 38. fxe3 {[%emt 0:00:17]} Rb8 {[%emt 0:01:14]} 39. g5 {[%emt 0:00:50]} Rb2 {[%emt 0:04:37]} 40. Kd1 {[%emt 0:00:00]} Nc4 {[%emt 0:00:00]} 41. Kc1 {[%emt 0:05:16]} Rb8 {[%emt 0:15:59]} 42. Rxc6 {[%emt 0:01:03]} Kf7 {[%emt 0:02:47]} 43. Bxe4 {[%emt 0:02:07]} Nxe3 {[%emt 0:00:24]} 44. Bf3 {[%emt 0:02:39]} Ke7 {[%emt 0:02:49]} 45. a5 {[%emt 0:01:23]} Rb5 {[%emt 0:02:48]} 46. a6 {[%emt 0:00:59]} Ra5 {[%emt 0:00:04]} 47. Be2 {[%emt 0:05:31]} Ng2 {[%emt 0:00:15]} 48. Kb2 {[%emt 0:07:04]} Nxh4 {[%emt 0:01:08]} 49. Kb3 {[%emt 0:02:52]} Kd7 {[%emt 0:01:12]} 50. Rf6 {[%emt 0:00:30]} Kc7 {[%emt 0:02:31]} 51. Kb4 {[%emt 0:00:17]} Ra2 {[%emt 0:00:40]} 52. Bb5 {[%emt 0:00:35]} Nf5 {[%emt 0:01:26]} 53. Rf7+ {[%emt 0:03:55]} Kb8 {[%emt 0:02:23]} 54. Kc5 {[%emt 0:01:01]} Ra5 {[%emt 0:01:13]} 55. Rb7+ {[%emt 0:00:55]} Ka8 {[%emt 0:00:46]} 56. Kxd5 {[%emt 0:00:40]} h5 {[%emt 0:01:30]} 57. c4 {[%emt 0:01:25]} h4 {[%emt 0:00:35]} 58. Rh7 {[%emt 0:00:17]} Ra1 {[%emt 0:01:20]} 59. Kc5 {[%emt 0:00:16]} Kb8 {[%emt 0:01:07]} 60. Kb6 {[%emt 0:00:38]} Nd6 {[%emt 0:00:07]} 61. Rxh4 {[%emt 0:01:19]} Nc8+ {[%emt 0:00:49]} 62. Kc5 {[%emt 0:00:06]} Rg1 {[%emt 0:00:38]} 63. Kc6 {[%emt 0:00:30]} Rxg5 {[%emt 0:00:14]} 64. Rh8 {[%emt 0:00:21]} Rh5 {[%emt 0:01:12]} 65. Rxc8+ {[%emt 0:01:50]} 1-0